fUSD/lending_fUSD_20260527
["ID","MTS","AMOUNT","RATE_DAILY","PERIOD"]
[423121421,1779868244000,-344.45437934,0.00035446,2]
[423121426,1779868244000,-300.0,0.00035446,2]
[423121422,1779868244000,-527.62572404,0.00035446,2]
[423121424,1779868244000,-300.0,0.00035446,2]
[423121428,1779868244000,-865.6208675,0.00035446,2]
[423121430,1779868244000,-950.32029804,0.00035446,2]
[423121432,1779868244000,-300.09384644,0.00035446,2]
[423121434,1779868244000,-1148.83589152,0.00035446,2]
[423121464,1779868244000,-424.15316134,0.00035446,2]
[423121436,1779868244000,-310.02493426,0.00035446,2]
[423121443,1779868244000,-464.48677942,0.00035446,2]
[423121445,1779868244000,-300.0,0.00035446,2]
[423121439,1779868244000,-594.79850986,0.00035446,2]
[423121449,1779868244000,-452.52893397,0.00035446,2]
[423121451,1779868244000,-300.0,0.00035446,2]
[423121442,1779868244000,-300.0,0.00035446,2]
[423121453,1779868244000,-300.0,0.00035446,2]
[423121455,1779868244000,-300.0,0.00035446,2]
[423121460,1779868244000,-310.28230408,0.00035446,2]
[423121457,1779868244000,-300.0,0.00035446,2]
[423121459,1779868244000,-484.76763572,0.00035446,2]
[423121462,1779868244000,-300.0,0.00035446,2]
[423121470,1779868244000,-300.0,0.00035446,2]
[423121438,1779868244000,-300.0,0.00035446,2]
[423121538,1779868244000,-150.0,0.00035507,7]
[423121447,1779868244000,-578.28315025,0.00035446,2]
[423121543,1779868244000,-151.0,0.00035507,7]
[423121609,1779868244000,-151.145608,0.00035518,7]
[423121613,1779868244000,-642.668548,0.00035518,7]
[423121611,1779868244000,-642.668548,0.00035518,7]
[423121618,1779868244000,-642.668546,0.00035518,7]
[423121615,1779868244000,-642.668548,0.00035518,7]
[423121620,1779868244000,-151.0,0.00035518,7]
[423121622,1779868244000,-3826.86947047,0.00035518,2]
[423121624,1779868244000,-3435.00000197,0.00035541,120]
[423121630,1779868244000,-151.0,0.00035616,7]
[423121664,1779868244000,-10533.00765797,0.00035645,2]
[423121634,1779868244000,-151.0,0.00035616,7]
[423121636,1779868244000,-172.54602,0.00035616,7]
[423121640,1779868244000,-151.489652,0.00035616,7]
[423121607,1779868244000,-151.0,0.00035518,7]
[423121628,1779868244000,-151.0,0.00035616,7]
[423121638,1779868244000,-151.0,0.00035616,7]
[423121631,1779868244000,-151.0,0.00035616,7]
[423121642,1779868244000,-200.0,0.00035616,90]
[423121644,1779868244000,-200.0,0.00035616,90]
[423121648,1779868244000,-200.0,0.00035616,90]
[423121646,1779868244000,-200.0,0.00035616,90]
[423121652,1779868244000,-200.0,0.00035616,90]
[423121654,1779868244000,-200.0,0.00035616,90]
[423121650,1779868244000,-200.0,0.00035616,90]
[423121660,1779868244000,-200.0,0.00035616,90]
[423121656,1779868244000,-200.0,0.00035616,90]
[423121662,1779868244000,-328.730035,0.00035616,90]
[423121539,1779868244000,-184.29655698,0.00035507,7]
[423121626,1779868244000,-151.0,0.00035616,7]
[423121605,1779868244000,-151.0,0.00035518,7]
[423121658,1779868244000,-200.0,0.00035616,90]
[423121600,1779868244000,-151.0,0.00035518,7]
[423121603,1779868244000,-151.0,0.00035518,7]
[423121541,1779868244000,-151.0,0.00035507,7]
[423121545,1779868244000,-151.0,0.00035507,7]
[423121557,1779868244000,-576.76,0.00035517,30]
[423121551,1779868244000,-642.668548,0.00035507,7]
[423121561,1779868244000,-500.0,0.00035517,2]
[423121563,1779868244000,-500.0,0.00035517,120]
[423121547,1779868244000,-151.0,0.00035507,7]
[423121553,1779868244000,-642.668548,0.00035507,7]
[423121559,1779868244000,-576.76,0.00035517,30]
[423121549,1779868244000,-642.668548,0.00035507,7]
[423121565,1779868244000,-500.0,0.00035517,120]
[423121571,1779868244000,-150.5247935,0.00035518,2]
[423121569,1779868244000,-422.12128,0.00035518,2]
[423121555,1779868244000,-642.668548,0.00035507,7]
[423121575,1779868244000,-151.0,0.00035518,7]
[423121590,1779868244000,-151.0,0.00035518,7]
[423121567,1779868244000,-11269.1663292,0.00035518,2]
[423121596,1779868244000,-151.0,0.00035518,7]
[423121586,1779868244000,-164.213196,0.00035518,7]
[423121592,1779868244000,-12161.1558981,0.00035518,2]
[423121588,1779868244000,-151.0,0.00035518,7]
[423121594,1779868244000,-53186.857446,0.00035518,2]
[423121573,1779868244000,-217421.0732437,0.00035518,2]
[423121576,1779868244000,-151.0,0.00035518,7]
[423121579,1779868244000,-151.0,0.00035518,7]
[423121584,1779868244000,-164.213196,0.00035518,7]
[423121598,1779868244000,-151.0,0.00035518,7]
[423121582,1779868244000,-164.213196,0.00035518,7]
[423121581,1779868244000,-164.213196,0.00035518,7]
[423121753,1779868245000,-164.213196,0.00036364,7]
[423121736,1779868245000,-150.0,0.00036348,2]
[423121742,1779868245000,-151.0,0.00036364,7]
[423121740,1779868245000,-1250.0,0.00036364,10]
[423121729,1779868245000,-812.695,0.00036348,2]
[423121738,1779868245000,-546.09,0.00036362,60]
[423121747,1779868245000,-151.0,0.00036364,7]
[423121749,1779868245000,-164.213196,0.00036364,7]
[423121751,1779868245000,-164.213196,0.00036364,7]
[423121755,1779868245000,-164.213196,0.00036364,7]
[423121745,1779868245000,-151.0,0.00036364,7]
[423121725,1779868245000,-633.44315941,0.00036285,120]
[423121762,1779868245000,-151.0,0.00036364,7]
[423121758,1779868245000,-151.0,0.00036364,7]
[423121770,1779868245000,-576.76,0.00036393,30]
[423121772,1779868245000,-576.76,0.00036393,30]
[423121775,1779868245000,-576.76,0.00036393,30]
[423121764,1779868245000,-313.40929795,0.00036384,2]
[423121768,1779868245000,-10533.00765797,0.00036392,2]
[423121766,1779868245000,-152.0,0.00036389,30]
[423121787,1779868245000,-500.0,0.00036393,2]
[423121777,1779868245000,-576.76,0.00036393,30]
[423121779,1779868245000,-576.76,0.00036393,30]
[423121734,1779868245000,-1310.723,0.00036348,2]
[423121788,1779868245000,-500.0,0.00036393,2]
[423121760,1779868245000,-186.478084,0.00036364,7]
[423121732,1779868245000,-519.0,0.00036348,2]
[423121681,1779868245000,-3435.00000197,0.00035943,120]
[423121727,1779868245000,-592.11914468,0.00036294,2]
[423121789,1779868245000,-500.0,0.00036393,2]
[423121667,1779868245000,-10533.00765797,0.00035795,2]
[423121669,1779868245000,-151.0,0.00035799,30]
[423121671,1779868245000,-151.0,0.00035799,30]
[423121673,1779868245000,-210.425724,0.00035799,30]
[423121675,1779868245000,-1006.0,0.000358,30]
[423121690,1779868245000,-497.11,0.00035964,7]
[423121686,1779868245000,-500.0,0.00035948,2]
[423121692,1779868245000,-266.16,0.00035964,7]
[423121688,1779868245000,-152.44869,0.00035949,7]
[423121684,1779868245000,-10533.00765797,0.00035944,2]
[423121678,1779868245000,-1971.44,0.000359,14]
[423121730,1779868245000,-1271.0,0.00036348,2]
[423121696,1779868245000,-217.21727,0.00035999,10]
[423121709,1779868245000,-3435.00000197,0.00036133,120]
[423121711,1779868245000,-3826.86947047,0.00036146,2]
[423121701,1779868245000,-527.0,0.00036066,13]
[423121713,1779868245000,-2011.22445,0.0003615,75]
[423121703,1779868245000,-633.44315941,0.00036074,120]
[423121717,1779868245000,-2011.22445,0.000362,75]
[423121715,1779868245000,-633.44315941,0.00036189,120]
[423121705,1779868245000,-10533.00765797,0.00036093,2]
[423121707,1779868245000,-1116.61267902,0.0003613,2]
[423121723,1779868245000,-3435.00000197,0.00036249,120]
[423121721,1779868245000,-10533.00765797,0.00036243,2]
[423121719,1779868245000,-167.19015429,0.00036218,2]
[423121698,1779868245000,-1540.41853989,0.00036,120]
[423121781,1779868245000,-576.76,0.00036393,30]
[423121694,1779868245000,-208.10395452,0.00035975,7]
[423121792,1779868245000,-500.0,0.00036393,120]
[423121861,1779868245000,-500.0,0.00036489,2]
[423121858,1779868245000,-500.0,0.00036489,2]
[423121860,1779868245000,-500.0,0.00036489,2]
[423121863,1779868245000,-500.0,0.00036489,2]
[423121867,1779868245000,-500.0,0.00036489,2]
[423121870,1779868245000,-500.0,0.00036489,2]
[423121865,1779868245000,-500.0,0.00036489,2]
[423121872,1779868245000,-500.0,0.00036489,2]
[423121882,1779868245000,-500.0,0.00036489,2]
[423121884,1779868245000,-500.0,0.00036489,2]
[423121886,1779868245000,-500.0,0.00036489,2]
[423121874,1779868245000,-500.0,0.00036489,2]
[423121856,1779868245000,-500.0,0.00036489,2]
[423121892,1779868245000,-500.0,0.00036489,2]
[423121890,1779868245000,-500.0,0.00036489,2]
[423121876,1779868245000,-500.0,0.00036489,2]
[423121878,1779868245000,-500.0,0.00036489,2]
[423121894,1779868245000,-500.0,0.00036489,2]
[423121905,1779868245000,-500.0,0.00036489,2]
[423121907,1779868245000,-500.0,0.00036489,2]
[423121908,1779868245000,-500.0,0.00036489,2]
[423121896,1779868245000,-500.0,0.00036489,2]
[423121898,1779868245000,-500.0,0.00036489,2]
[423121901,1779868245000,-500.0,0.00036489,2]
[423121903,1779868245000,-500.0,0.00036489,2]
[423121783,1779868245000,-500.0,0.00036393,2]
[423121888,1779868245000,-500.0,0.00036489,2]
[423121852,1779868245000,-576.85049962,0.00036489,30]
[423121880,1779868245000,-500.0,0.00036489,2]
[423121854,1779868245000,-500.0,0.00036489,2]
[423121791,1779868245000,-500.0,0.00036393,2]
[423121846,1779868245000,-576.76,0.00036489,30]
[423121794,1779868245000,-500.0,0.00036393,120]
[423121785,1779868245000,-500.0,0.00036393,2]
[423121796,1779868245000,-500.0,0.00036393,120]
[423121799,1779868245000,-500.0,0.00036393,120]
[423121811,1779868245000,-152.012111,0.00036394,7]
[423121813,1779868245000,-164.213196,0.00036394,7]
[423121818,1779868245000,-164.213196,0.00036394,7]
[423121800,1779868245000,-595.86024803,0.00036393,120]
[423121803,1779868245000,-1500000.0,0.00036394,2]
[423121820,1779868245000,-164.213196,0.00036394,7]
[423121807,1779868245000,-151.0,0.00036394,7]
[423121816,1779868245000,-164.213196,0.00036394,7]
[423121834,1779868245000,-264.36486527,0.00036473,2]
[423121822,1779868245000,-151.0,0.00036394,7]
[423121809,1779868245000,-151.0,0.00036394,7]
[423121824,1779868245000,-156.624335,0.00036394,7]
[423121826,1779868245000,-576.76,0.00036399,30]
[423121850,1779868245000,-576.76,0.00036489,30]
[423121828,1779868245000,-17813.0,0.000364,30]
[423121830,1779868245000,-152.0,0.00036411,7]
[423121832,1779868245000,-9763.15068464,0.00036461,2]
[423121842,1779868245000,-152.0,0.00036484,7]
[423121844,1779868245000,-576.76,0.00036489,30]
[423121805,1779868245000,-250.0,0.00036394,30]
[423121848,1779868245000,-576.76,0.00036489,30]
[423121996,1779868246000,-251.0,0.00036493,30]
[423121973,1779868246000,-162.380719,0.00036493,30]
[423121998,1779868246000,-151.0,0.00036493,30]
[423121992,1779868246000,-160.0,0.00036493,30]
[423121994,1779868246000,-151.0,0.00036493,30]
[423121986,1779868246000,-171.59967328,0.00036493,30]
[423121990,1779868246000,-520.0,0.00036493,30]
[423121977,1779868246000,-500.0,0.00036493,30]
[423121988,1779868246000,-500.0,0.00036493,30]
[423121976,1779868246000,-168.3888056,0.00036493,30]
[423121979,1779868246000,-160.0,0.00036493,30]
[423121975,1779868246000,-1000.0,0.00036493,30]
[423121981,1779868246000,-151.0,0.00036493,30]
[423122018,1779868246000,-160.0,0.00036493,30]
[423121984,1779868246000,-1000.0,0.00036493,30]
[423122002,1779868246000,-518.5,0.00036493,30]
[423122000,1779868246000,-1000.0,0.00036493,30]
[423122004,1779868246000,-151.0,0.00036493,30]
[423122006,1779868246000,-200.0,0.00036493,30]
[423122008,1779868246000,-152.0,0.00036493,30]
[423122010,1779868246000,-151.0,0.00036493,30]
[423122013,1779868246000,-151.0,0.00036493,30]
[423122014,1779868246000,-500.0,0.00036493,30]
[423122017,1779868246000,-518.5,0.00036493,30]
[423122020,1779868246000,-539.24,0.00036493,30]
[423122033,1779868246000,-170.32008282,0.00036493,30]
[423121974,1779868246000,-297.32167773,0.00036493,30]
[423121982,1779868246000,-151.0,0.00036493,30]
[423121971,1779868246000,-1000.0,0.00036493,30]
[423121914,1779868246000,-500.0,0.00036489,2]
[423121955,1779868246000,-707.26835115,0.00036492,5]
[423121912,1779868246000,-500.0,0.00036489,2]
[423121910,1779868246000,-500.0,0.00036489,2]
[423122031,1779868246000,-1000.0,0.00036493,30]
[423121916,1779868246000,-500.0,0.00036489,2]
[423121918,1779868246000,-500.0,0.00036489,2]
[423121922,1779868246000,-500.0,0.00036489,2]
[423121920,1779868246000,-500.0,0.00036489,2]
[423121924,1779868246000,-500.0,0.00036489,2]
[423121926,1779868246000,-500.0,0.00036489,2]
[423121928,1779868246000,-500.0,0.00036489,2]
[423121932,1779868246000,-500.0,0.00036489,2]
[423121930,1779868246000,-500.0,0.00036489,2]
[423121934,1779868246000,-500.0,0.00036489,2]
[423121959,1779868246000,-1000.0,0.00036493,30]
[423121936,1779868246000,-500.0,0.00036489,2]
[423121939,1779868246000,-500.0,0.00036489,2]
[423121947,1779868246000,-1000.0,0.00036491,15]
[423121945,1779868246000,-319.1543372,0.00036489,2]
[423121943,1779868246000,-500.0,0.00036489,2]
[423121949,1779868246000,-1000.0,0.00036492,5]
[423121951,1779868246000,-1377.42282658,0.00036492,5]
[423121961,1779868246000,-151.0,0.00036493,30]
[423121963,1779868246000,-1000.0,0.00036493,30]
[423121967,1779868246000,-156.587,0.00036493,30]
[423121969,1779868246000,-162.380719,0.00036493,30]
[423121957,1779868246000,-151.0,0.00036493,30]
[423121953,1779868246000,-607.73253053,0.00036492,5]
[423121965,1779868246000,-156.587,0.00036493,30]
[423121941,1779868246000,-500.0,0.00036489,2]
[423122035,1779868246000,-156.587,0.00036493,30]
[423122050,1779868246000,-168.85974183,0.00036493,30]
[423122039,1779868246000,-156.587,0.00036493,30]
[423122096,1779868246000,-1000.0,0.00036493,30]
[423122102,1779868246000,-152.0,0.00036493,30]
[423122104,1779868246000,-168.3888056,0.00036493,30]
[423122106,1779868246000,-168.3888056,0.00036493,30]
[423122116,1779868246000,-500.0,0.00036493,30]
[423122111,1779868246000,-7407.141672,0.00036493,30]
[423122118,1779868246000,-557.5788265,0.00036493,30]
[423122114,1779868246000,-151.0,0.00036493,30]
[423122108,1779868246000,-500.0,0.00036493,30]
[423122113,1779868246000,-200.0,0.00036493,30]
[423122120,1779868246000,-537.6845,0.00036493,30]
[423122135,1779868246000,-174.61919141,0.00036493,30]
[423122133,1779868246000,-174.61919141,0.00036493,30]
[423122100,1779868246000,-168.3888056,0.00036493,30]
[423122137,1779868246000,-4270.57712429,0.00036493,30]
[423122122,1779868246000,-691.39774486,0.00036493,30]
[423122126,1779868246000,-174.61919141,0.00036493,30]
[423122141,1779868246000,-200.0,0.00036493,30]
[423122129,1779868246000,-544.48822506,0.00036493,30]
[423122124,1779868246000,-1013.02436037,0.00036493,30]
[423122131,1779868246000,-152.0,0.00036493,30]
[423122143,1779868246000,-578.20924308,0.00036493,30]
[423122145,1779868246000,-500.0,0.00036493,30]
[423122147,1779868246000,-151.0,0.00036493,30]
[423122149,1779868246000,-716.97946141,0.00036493,30]
[423122155,1779868246000,-152.0,0.00036493,30]
[423122151,1779868246000,-379.05011561,0.00036493,30]
[423122153,1779868246000,-181.08010149,0.00036493,30]
[423122037,1779868246000,-152.0,0.00036493,30]
[423122098,1779868246000,-500.0,0.00036493,30]
[423122139,1779868246000,-500.0,0.00036493,30]
[423122094,1779868246000,-165.2528065,0.00036493,30]
[423122090,1779868246000,-666.72878,0.00036493,30]
[423122022,1779868246000,-151.0,0.00036493,30]
[423122027,1779868246000,-260.287,0.00036493,30]
[423122040,1779868246000,-156.587,0.00036493,30]
[423122025,1779868246000,-151.0,0.00036493,30]
[423122029,1779868246000,-620.0,0.00036493,30]
[423122046,1779868246000,-6888.0,0.00036493,30]
[423122043,1779868246000,-500.0,0.00036493,30]
[423122048,1779868246000,-500.0,0.00036493,30]
[423122056,1779868246000,-151.0,0.00036493,30]
[423122058,1779868246000,-642.94,0.00036493,30]
[423122054,1779868246000,-559.19188,0.00036493,30]
[423122052,1779868246000,-151.0,0.00036493,30]
[423122064,1779868246000,-1000.0,0.00036493,30]
[423122044,1779868246000,-200.0,0.00036493,30]
[423122068,1779868246000,-162.380719,0.00036493,30]
[423122092,1779868246000,-359.16411204,0.00036493,30]
[423122060,1779868246000,-275.07479905,0.00036493,30]
[423122083,1779868246000,-518.5,0.00036493,30]
[423122085,1779868246000,-537.6845,0.00036493,30]
[423122086,1779868246000,-151.0,0.00036493,30]
[423122080,1779868246000,-500.0,0.00036493,30]
[423122073,1779868246000,-162.380719,0.00036493,30]
[423122075,1779868246000,-200.0,0.00036493,30]
[423122076,1779868246000,-500.0,0.00036493,30]
[423122071,1779868246000,-152.0,0.00036493,30]
[423122066,1779868246000,-162.380719,0.00036493,30]
[423122062,1779868246000,-500.0,0.00036493,30]
[423122079,1779868246000,-7142.856,0.00036493,30]
[423122192,1779868247000,-198.66569933,0.00036493,30]
[423122212,1779868247000,-500.0,0.00036493,30]
[423122197,1779868247000,-203.4454062,0.00036493,30]
[423122199,1779868247000,-500.0,0.00036493,30]
[423122210,1779868247000,-500.0,0.00036493,30]
[423122213,1779868247000,-298.00835152,0.00036493,30]
[423122207,1779868247000,-201.93286098,0.00036493,30]
[423122220,1779868247000,-500.0,0.00036493,30]
[423122201,1779868247000,-194.72792766,0.00036493,30]
[423122218,1779868247000,-500.0,0.00036493,30]
[423122216,1779868247000,-500.0,0.00036493,30]
[423122205,1779868247000,-500.0,0.00036493,30]
[423122230,1779868247000,-500.0,0.00036493,30]
[423122188,1779868247000,-156.43962677,0.00036493,30]
[423122203,1779868247000,-500.0,0.00036493,30]
[423122190,1779868247000,-500.0,0.00036493,30]
[423122161,1779868247000,-200.0,0.00036493,30]
[423122195,1779868247000,-194.96924333,0.00036493,30]
[423122222,1779868247000,-500.0,0.00036493,30]
[423122159,1779868247000,-500.0,0.00036493,30]
[423122163,1779868247000,-599.60298507,0.00036493,30]
[423122165,1779868247000,-158.92943034,0.00036493,30]
[423122167,1779868247000,-419.74552907,0.00036493,30]
[423122157,1779868247000,-181.08010149,0.00036493,30]
[423122184,1779868247000,-615.17166543,0.00036493,30]
[423122172,1779868247000,-500.0,0.00036493,30]
[423122176,1779868247000,-187.78006524,0.00036493,30]
[423122174,1779868247000,-152.0,0.00036493,30]
[423122178,1779868247000,-187.78006524,0.00036493,30]
[423122180,1779868247000,-200.0,0.00036493,30]
[423122182,1779868247000,-500.0,0.00036493,30]
[423122186,1779868247000,-187.78006524,0.00036493,30]
[423122169,1779868247000,-181.08010149,0.00036493,30]
[423122232,1779868247000,-500.0,0.00036493,30]
[423122247,1779868247000,-500.0,0.00036493,30]
[423122241,1779868247000,-500.0,0.00036493,30]
[423122275,1779868247000,-200.0,0.00036494,2]
[423122278,1779868247000,-2011.22445,0.00036494,79]
[423122279,1779868247000,-2011.22445,0.00036494,79]
[423122284,1779868247000,-2011.22446,0.00036494,79]
[423122282,1779868247000,-2011.22445,0.00036494,79]
[423122290,1779868247000,-313.40929795,0.00036538,2]
[423122271,1779868247000,-500.0,0.00036493,2]
[423122288,1779868247000,-402.81,0.00036528,10]
[423122294,1779868247000,-222962.3983933,0.00036548,30]
[423122292,1779868247000,-633.44315941,0.00036541,120]
[423122297,1779868247000,-337.35425568,0.00036548,30]
[423122314,1779868247000,-493.38669858,0.00035446,2]
[423122316,1779868247000,-300.0,0.00035446,2]
[423122237,1779868247000,-500.0,0.00036493,30]
[423122286,1779868247000,-8193.07846143,0.000365,10]
[423122273,1779868247000,-1000.0,0.00036493,30]
[423122318,1779868247000,-22317.56884103,0.00036548,30]
[423122267,1779868247000,-500.0,0.00036493,30]
[423122239,1779868247000,-500.0,0.00036493,30]
[423122234,1779868247000,-500.0,0.00036493,30]
[423122243,1779868247000,-500.0,0.00036493,30]
[423122253,1779868247000,-500.0,0.00036493,30]
[423122269,1779868247000,-500.0,0.00036493,2]
[423122245,1779868247000,-500.0,0.00036493,30]
[423122257,1779868247000,-500.0,0.00036493,30]
[423122255,1779868247000,-500.0,0.00036493,30]
[423122251,1779868247000,-500.0,0.00036493,30]
[423122262,1779868247000,-500.0,0.00036493,30]
[423122249,1779868247000,-500.0,0.00036493,30]
[423122320,1779868247000,-766.706056,0.00036548,30]
[423122263,1779868247000,-500.0,0.00036493,30]
[423122265,1779868247000,-500.0,0.00036493,30]
[423122260,1779868247000,-500.0,0.00036493,30]
[423122428,1779868248000,-158.51293867,0.00036594,60]
[423122434,1779868248000,-2696.93600724,0.00036641,88]
[423122433,1779868248000,-633.44315941,0.00036616,120]
[423122435,1779868248000,-202.72444351,0.00036652,2]
[423122439,1779868248000,-3826.86947047,0.00036774,2]
[423122444,1779868248000,-633.44315941,0.00037008,120]
[423122440,1779868248000,-1544.0,0.00036814,7]
[423122437,1779868248000,-1250.0,0.00036759,10]
[423122438,1779868248000,-3435.00000197,0.00036759,120]
[423122441,1779868248000,-200.0,0.00036859,2]
[423122443,1779868248000,-154.0,0.00036979,5]
[423122431,1779868248000,-633.44315941,0.0003661,120]
[423122436,1779868248000,-179.59,0.0003672,7]
[423122430,1779868248000,-1971.44,0.000366,14]
[423122421,1779868248000,-1486.26004838,0.00036548,30]
[423122423,1779868248000,-152.0,0.00036557,7]
[423122424,1779868248000,-633.44315941,0.00036561,120]
[423122425,1779868248000,-350.0,0.00036562,2]
[423122426,1779868248000,-1187.88,0.00036568,10]
[423122422,1779868248000,-836876.91362697,0.00036548,30]
[423122432,1779868248000,-216.0,0.00036612,10]
[423122414,1779868248000,-300.0,0.00035446,2]
[423122416,1779868248000,-605.31118564,0.00035446,2]
[423122412,1779868248000,-151.0,0.00035,7]
[423122420,1779868248000,-83.27329537,0.00036457,2]
[423122411,1779868248000,-151.0,0.00032232,7]
[423122418,1779868248000,-516.42232344,0.00036457,2]
[423122386,1779868248000,-55416.37117864,0.00036548,30]
[423122449,1779868248000,-633.44315941,0.00037081,120]
[423122427,1779868248000,-158.66258774,0.00036593,60]
[423122448,1779868248000,-16830.9,0.00037067,30]
[423122429,1779868248000,-157.76469338,0.00036595,60]
[423122447,1779868248000,-17645.24,0.00037067,2]
[423122465,1779868248000,-164.62,0.00037431,2]
[423122474,1779868248000,-350.0,0.00037604,2]
[423122473,1779868248000,-17813.0,0.000376,30]
[423122475,1779868248000,-1403.57066097,0.00037724,2]
[423122466,1779868248000,-4715.349073,0.00037435,2]
[423122468,1779868248000,-500.0,0.00037461,120]
[423122462,1779868248000,-633.44315941,0.00037388,120]
[423122469,1779868248000,-500.0,0.00037461,120]
[423122477,1779868248000,-1653.33,0.00037798,120]
[423122471,1779868248000,-633.44315941,0.00037533,120]
[423122476,1779868248000,-3435.49911236,0.00037763,94]
[423122472,1779868248000,-500.0,0.00037599,2]
[423122478,1779868248000,-533.7796,0.00037833,30]
[423122445,1779868248000,-3002.36148691,0.00037015,90]
[423122467,1779868248000,-723448.23684757,0.00037435,2]
[423122458,1779868248000,-633.44315941,0.00037219,120]
[423122470,1779868248000,-633.44315941,0.00037466,120]
[423122463,1779868248000,-3218.93029957,0.00037389,92]
[423122454,1779868248000,-220.92493957,0.000372,120]
[423122442,1779868248000,-156.0,0.00036979,5]
[423122446,1779868248000,-350.0,0.00037049,2]
[423122451,1779868248000,-176.88858673,0.000372,30]
[423122453,1779868248000,-220.92493959,0.000372,120]
[423122455,1779868248000,-220.92493957,0.000372,120]
[423122450,1779868248000,-1540.41853989,0.000371,120]
[423122461,1779868248000,-633.44315941,0.00037368,120]
[423122464,1779868248000,-3826.86947047,0.00037403,2]
[423122460,1779868248000,-633.44315941,0.00037322,120]
[423122452,1779868248000,-221.22082796,0.000372,30]
[423122457,1779868248000,-633.44315941,0.00037213,120]
[423122456,1779868248000,-220.92493957,0.000372,120]
[423122459,1779868248000,-1971.44,0.000373,14]
[423122515,1779868249000,-168.640182,0.00038356,30]
[423122529,1779868249000,-168.640182,0.00038356,30]
[423122521,1779868249000,-168.640182,0.00038356,30]
[423122517,1779868249000,-168.640182,0.00038356,30]
[423122523,1779868249000,-168.640182,0.00038356,30]
[423122527,1779868249000,-168.640182,0.00038356,30]
[423122525,1779868249000,-168.640182,0.00038356,30]
[423122539,1779868249000,-1129.281027,0.00038356,30]
[423122537,1779868249000,-2049.841456,0.00038356,30]
[423122536,1779868249000,-2049.841456,0.00038356,30]
[423122540,1779868249000,-2049.841456,0.00038356,30]
[423122534,1779868249000,-168.640185,0.00038356,30]
[423122519,1779868249000,-168.640182,0.00038356,30]
[423122543,1779868249000,-1129.281027,0.00038356,30]
[423122541,1779868249000,-1069.329214,0.00038356,30]
[423122535,1779868249000,-2049.841456,0.00038356,30]
[423122531,1779868249000,-168.640182,0.00038356,30]
[423122533,1779868249000,-168.640182,0.00038356,30]
[423122551,1779868249000,-1129.281027,0.00038356,30]
[423122552,1779868249000,-2049.841456,0.00038356,30]
[423122553,1779868249000,-1069.329214,0.00038356,30]
[423122545,1779868249000,-1129.281027,0.00038356,30]
[423122554,1779868249000,-1129.281027,0.00038356,30]
[423122542,1779868249000,-2049.841456,0.00038356,30]
[423122546,1779868249000,-2049.841456,0.00038356,30]
[423122513,1779868249000,-168.640182,0.00038356,30]
[423122548,1779868249000,-2049.841456,0.00038356,30]
[423122532,1779868249000,-168.640182,0.00038356,30]
[423122509,1779868249000,-168.640182,0.00038356,30]
[423122502,1779868249000,-168.640182,0.00038356,30]
[423122504,1779868249000,-168.640182,0.00038356,30]
[423122544,1779868249000,-1069.329214,0.00038356,30]
[423122480,1779868249000,-7806.17718071,0.00038,120]
[423122484,1779868249000,-213.76,0.0003804,120]
[423122486,1779868249000,-9716.35057307,0.00038153,2]
[423122483,1779868249000,-3826.86947047,0.00038031,2]
[423122482,1779868249000,-1971.44,0.00038,14]